bitfinex/quotes_SOLUSD_20251024
["timestamp","ask_amount","ask_price","bid_price","bid_amount"]
[1761308996493,0.1,193.0,192.97,50.0]
[1761308996694,0.1,193.0,192.99,36.44]
[1761308999911,0.1,193.0,192.97,50.0]
[1761309000229,0.1,193.0,192.98,36.42]
[1761309000389,0.1,193.0,192.96,0.51824212]
[1761309000595,22.88,192.99,192.9,36.5]
[1761309000818,7.18161561,192.99,192.79,50.0]
[1761309001103,7.18161561,192.99,192.74,50.0]
[1761309001104,1.99999999,192.91,192.74,50.0]
[1761309001311,22.88,192.96,192.66,50.0]
[1761309001535,50.0,193.14,192.86,1.99999999]
[1761309001689,2.70274545,193.22,193.02,1.99999999]
[1761309001891,5.16876001,193.47,193.03,49.95017294]
[1761309002093,25.02658066,193.87,193.32,2.70274545]
[1761309002288,15.52714662,193.52,193.33,20.46821017]
[1761309002617,31.16,194.11,193.57,8.8357486]
[1761309002917,15.49106681,193.88,193.61,1.99999999]
[1761309003094,50.0,194.2,193.61,1.99999999]
[1761309003416,24.86,194.38,193.78,1.99999999]
[1761309003417,50.0,194.27,193.78,1.99999999]
[1761309003618,9.77072298,194.24,193.85,1.99999999]
[1761309003807,2.0,194.17,193.85,37.96]
[1761309004115,0.51583617,194.32,193.86,25.63447003]
[1761309004317,0.51583617,194.31,194.02,50.0]
[1761309004527,0.51583617,194.37,194.1,50.0]
[1761309004699,0.51583617,194.44,194.25,50.0]
[1761309004899,0.51583617,194.47,194.26,0.51477401]
[1761309005121,0.51583617,194.46,194.29,50.0]
[1761309005315,0.51583617,194.55,194.3,0.51466803]
[1761309005624,0.51583617,194.59,194.41,50.0]
[1761309005834,11.63246157,194.6,194.45,50.0]
[1761309006125,11.63246157,194.6,194.48,50.0]
[1761309006424,11.63246157,194.6,194.49,0.51416525]
[1761309006623,11.63246157,194.6,194.54,190.0]
[1761309006624,3.06134389,194.6,194.54,190.0]
[1761309006822,0.05637219,194.84,194.67,8.31487014]
[1761309007072,0.05637219,194.84,194.65,3.06134389]
[1761309007195,0.05637219,194.84,194.68,55.53991847]
[1761309007398,0.05637219,194.84,194.49,25.84706555]
[1761309007399,8.22780553,194.8,194.75,50.0]
[1761309007598,8.22780553,194.8,194.79,50.0]
[1761309007930,193.05135987,195.0,194.98,50.0]
[1761309008345,193.05135987,195.0,194.64,96.36386216]
[1761309008346,193.05135987,195.0,194.91,50.0]
[1761309008507,193.05135987,195.0,194.99,50.0]
[1761309008709,193.05135987,195.0,194.91,1.99999999]
[1761309008948,193.05135987,195.0,194.94,50.0]
[1761309009227,193.05135987,195.0,194.99,50.0]
[1761309009434,14.44385027,195.13,194.99,51.99999999]
[1761309009639,1.99999973,195.53,195.17,6.62058896]
[1761309009814,5.83787478,195.52,195.06,61.19515053]
[1761309010008,1.99999973,195.52,195.38,50.0]
[1761309010206,14.44385027,195.58,195.07,11.41410312]
[1761309010207,1.99999973,195.37,195.36,50.0]
[1761309010409,1.99999973,195.55,195.36,50.0]
[1761309010609,1.99999973,195.65,195.41,50.0]
[1761309010837,1.99999973,195.71,195.29,50.0]
[1761309011011,1.99999973,195.36,195.29,49.5]
[1761309011217,17.87914813,195.76,193.58,37.26819086]
[1761309011218,1.99999973,195.34,195.33,100.0]
[1761309011436,1.99999973,195.34,194.5,49.7976436]
[1761309011437,3.99999973,195.34,194.97,70.82]
[1761309011640,1.99999973,195.32,194.98,74.98817046]
[1761309011824,15.34173719,195.73,194.96,77.64816831]
[1761309011825,1.99999973,195.34,194.96,77.64816831]
[1761309012016,1.99999973,195.15,194.54,0.32026555]
[1761309012217,1.99999973,194.67,194.66,50.0]
[1761309012522,1.99999999,195.14,195.13,74.32723895]
[1761309012722,1.99999999,194.88,194.61,50.0]
[1761309012929,8.05331596,195.13,194.23,25.98637912]
[1761309012930,7.46218665,194.95,194.23,25.98637912]
[1761309013241,4.79253022,194.95,194.21,1.99999999]
[1761309013446,50.0,194.43,194.15,4.10796059]
[1761309013623,59.46746563,194.42,194.07,7.46218665]
[1761309013825,6.72019151,194.61,194.1,25.40123689]
[1761309014138,6.29191373,194.72,194.09,25.3287014]
[1761309014448,53.88,194.79,193.59,37.26819086]
[1761309014449,50.0,194.79,194.1,42.05454268]
[1761309014740,15.45833977,194.6,194.1,42.78954962]
[1761309014940,15.08808852,194.6,194.33,50.0]
[1761309015125,1.99999999,194.84,194.31,5.98135558]
[1761309015326,50.0,194.83,194.31,5.98135558]
[1761309015640,88.70345719,194.84,194.36,31.41137067]
[1761309015838,17.96345719,194.84,194.33,50.0]
[1761309016143,5.79603817,194.83,194.33,50.0]
[1761309016442,17.96345719,194.84,194.42,50.0]
[1761309016625,1.99999999,194.78,194.52,50.0]
[1761309016824,1.99999999,194.78,194.47,50.0]
[1761309017143,19.96345718,194.84,194.51,50.0]
[1761309017442,17.96345719,194.84,194.4,31.41137067]
[1761309017656,17.96530129,194.82,194.29,50.0]
[1761309017854,6.19630359,194.81,194.32,50.0]
[1761309018154,17.96530129,194.82,194.46,50.0]
[1761309018445,5.13021669,194.93,194.61,50.0]
[1761309018742,5.13021669,194.93,194.71,50.0]
[1761309018928,5.13021669,194.93,194.69,50.0]
[1761309019129,1.99999999,195.0,194.69,65.5664085]
[1761309019338,5.64253383,195.01,194.85,50.0]
[1761309019560,5.64253383,195.01,194.96,50.0]
[1761309019848,1.99999999,195.11,194.71,50.0]
[1761309020030,1.99999999,195.03,194.79,12.80725843]
[1761309020344,1.99999999,195.11,194.79,12.80725843]
[1761309020648,1.99999999,195.21,194.9,50.0]
[1761309020820,1.99999999,195.15,194.76,31.41137067]
[1761309021020,1.99999999,195.04,194.8,50.0]
[1761309021243,1.99999999,195.05,194.7,15.38974529]
[1761309021440,1.99999999,195.11,194.71,50.5]
[1761309021647,74.5741232,195.29,194.73,50.0]
[1761309021648,5.12557662,195.1,194.73,50.0]
[1761309021953,17.93951818,195.1,194.77,50.0]
[1761309022255,5.12311798,195.2,194.87,50.0]
[1761309022541,5.12311798,195.2,194.68,6.02111783]
[1761309022542,5.1208521,195.28,195.1,0.16151046]
[1761309022946,17.92315011,195.28,195.1,0.16151046]
[1761309023145,5.11999314,195.32,195.12,50.0]
[1761309023456,19.91950162,195.32,195.1,0.16151046]
[1761309023619,1.99999999,195.2,194.82,31.41137067]
[1761309023820,1.99999999,195.2,194.66,25.00258334]
[1761309024027,50.0,195.11,194.7,15.40396908]
[1761309024325,22.88,195.06,194.49,25.84706555]
[1761309024518,22.88,195.06,194.6,50.0]
[1761309024718,22.88,195.15,194.81,50.0]
[1761309024930,1.99999999,195.19,194.88,50.0]
[1761309025122,1.99999999,195.33,194.99,50.0]
[1761309025340,17.91950163,195.32,194.99,22.88]
[1761309025522,17.91950163,195.32,195.07,22.88]
[1761309025721,17.91950163,195.32,194.93,7.39843172]
[1761309025722,17.91950163,195.32,195.05,50.0]
[1761309025929,1.99999999,195.22,194.77,31.41137067]
[1761309026130,17.91950163,195.32,195.14,50.0]
[1761309026446,17.91950163,195.32,194.66,70.64]
[1761309026447,22.88,195.29,194.99,50.0]
[1761309026636,1.99999999,195.27,194.94,50.0]
[1761309026839,1.99999999,195.27,195.01,22.88]
[1761309027157,1.99999999,195.4,195.1,22.88]
[1761309027376,15.36767154,195.45,195.28,50.0]
[1761309027536,15.36767154,195.45,195.37,22.88]
[1761309027732,1.99999999,195.7,195.38,50.0]
[1761309028044,15.60194177,195.65,195.38,15.34958684]
[1761309028244,8.76246157,195.51,195.38,15.34958684]
[1761309028563,8.76246157,195.51,195.5,50.0]
[1761309028744,12.77032424,195.77,195.53,50.0]
[1761309028945,5.10777403,195.78,195.51,0.72998639]
[1761309028946,5.10777403,195.78,195.57,50.0]
[1761309029142,15.32527904,195.97,195.6,54.29137067]
[1761309029344,15.32527904,195.97,195.86,50.0]
[1761309029545,1.99999999,196.35,196.11,50.0]
[1761309029735,11.63246157,196.5,196.11,57.08436151]
[1761309029736,1.99999999,196.39,196.11,57.08436151]
[1761309029941,15.28701368,196.41,196.39,50.0]
[1761309030143,11.63246157,196.5,196.35,50.0]
[1761309030364,7.08436151,196.36,196.16,31.41137067]
[1761309030539,1.99999999,196.38,196.1,50.0]
[1761309030743,1.99999999,196.38,195.57,63.18]
[1761309030744,7.08436151,196.11,195.82,31.41137067]
[1761309031058,11.83464,196.1,195.73,50.0]
[1761309031257,7.08436151,195.74,195.56,50.0]
[1761309031457,40.94,196.09,195.19,25.03886561]
[1761309031458,4.15231897,196.09,195.61,7.08436151]
[1761309031642,7.08436151,196.0,195.61,7.08436151]
[1761309031849,29.15264655,196.08,195.63,31.41137067]
[1761309032044,5.81075992,196.07,195.27,70.48]
[1761309032249,17.8498572,196.08,195.84,50.0]
[1761309032543,28.15168963,196.16,195.7,50.0]
[1761309032544,5.09813917,196.15,195.7,50.0]
[1761309032750,1.99999999,195.98,195.51,82.14135706]
[1761309032957,4.15231897,196.14,195.61,50.0]
[1761309033161,4.15231897,196.14,195.62,50.0]
[1761309033162,7.08436151,196.0,195.62,50.0]
[1761309033370,7.08436151,196.0,195.56,50.0]
[1761309033575,48.86158908,195.99,195.51,0.72998639]
[1761309033756,53.01390805,195.99,195.51,0.72998639]
[1761309033954,53.01390805,195.99,195.57,50.0]
[1761309033955,7.08436151,195.75,195.57,50.0]
[1761309034249,43.36955965,195.99,195.51,0.72998639]
[1761309034464,43.36955965,195.99,195.54,6.03118141]
[1761309034672,43.36955965,195.99,195.5,7.08436151]
[1761309034946,43.36955965,195.99,195.69,50.0]
[1761309035151,43.36955965,195.99,195.53,50.0]
[1761309035359,5.49202943,195.98,195.68,50.0]
[1761309035563,25.49459514,196.12,195.78,22.88]
[1761309035778,12.74729757,196.12,195.83,22.88]
[1761309036084,7.08436151,195.84,195.33,1.99999999]
[1761309036264,22.88,195.72,195.27,50.0]
[1761309036450,22.88,195.87,195.51,50.0]
[1761309036650,22.88,195.87,195.57,7.08436151]
[1761309036865,22.88,195.91,195.5,50.0]
[1761309037084,57.14883505,196.15,195.74,7.08436151]
[1761309037263,57.14883505,196.15,195.57,50.0]
[1761309037264,7.08436151,196.0,195.57,50.0]
[1761309037465,22.88,195.75,195.42,1.99999999]
[1761309037771,1.99999999,196.12,195.71,50.0]
[1761309037975,17.84829002,196.1,195.82,7.08436151]
[1761309038181,17.84829002,196.1,195.88,50.0]
[1761309038477,5.09943906,196.1,195.96,22.88]
[1761309038654,52.76,196.53,195.96,22.88]
[1761309038655,5.09346508,196.33,196.0,50.0]
[1761309038852,17.30812325,196.45,196.25,22.88]
[1761309039086,17.30812325,196.45,196.17,31.41137067]
[1761309039276,17.30812325,196.45,196.12,1.99999999]
[1761309039277,5.0906129,196.44,196.23,22.88]
[1761309039462,35.12459217,196.45,196.09,50.0]
[1761309039774,35.12459217,196.45,196.04,1.99999999]
[1761309039775,17.30812325,196.45,196.04,7.28691339]
[1761309039958,17.30812325,196.45,196.17,50.0]
[1761309040159,17.81714517,196.44,195.88,15.03081019]
[1761309040362,17.81714517,196.44,195.76,31.41137067]
[1761309040363,17.30812325,196.45,196.05,31.41137067]
[1761309040686,1.99999999,196.27,195.94,50.0]
[1761309040979,43.27020971,196.44,195.99,33.41137066]
[1761309041183,43.27020971,196.44,196.17,22.88]
[1761309041483,43.27020971,196.44,195.88,1.99999999]
[1761309041690,1.99999999,196.27,195.9,50.0]
[1761309041869,1.99999999,196.27,195.68,70.3]
[1761309041870,68.72327425,196.44,195.99,31.41137067]
[1761309042183,17.30812325,196.45,196.19,22.88]
[1761309042388,14.42812325,196.45,196.33,22.88]
[1761309042572,14.42812325,196.45,196.44,50.0]
[1761309042896,11.63246157,196.5,196.48,81.41137067]
[1761309043084,1.99999999,196.92,196.57,50.0]
[1761309043254,14.99333954,196.84,196.58,31.41137067]
[1761309043454,1.99999999,196.57,196.38,49.28]
[1761309043656,1.99999999,196.35,196.02,50.0]
[1761309043888,1.99999999,196.35,195.84,25.99241283]
[1761309043889,1.99999999,196.3,195.88,50.0]
[1761309044101,5.57937376,196.4,195.77,263.11353379]
[1761309044102,1.99999999,196.17,195.77,263.11353379]
[1761309044263,7.08436151,196.0,195.64,25.36142627]
[1761309044464,9.18003761,196.19,195.61,50.0]
[1761309044779,15.3258002,196.3,195.74,50.0]
[1761309044957,1.99999999,196.39,195.75,44.2313073]
[1761309045161,1.99999999,196.41,196.04,50.0]
[1761309045376,17.26363363,196.41,195.96,50.0]
[1761309045584,12.72912423,196.4,196.05,1.99999999]
[1761309045783,12.72912423,196.4,196.15,50.0]
[1761309045957,12.72912423,196.4,196.1,50.0]
[1761309046157,12.72912423,196.4,195.96,14.95582287]
[1761309046158,1.99999999,196.4,196.06,50.0]
[1761309046359,7.08436151,196.43,196.3,50.0]
[1761309046574,1.99999999,196.67,196.3,50.0]
[1761309046784,4.11240407,196.74,196.37,50.0]
[1761309046960,1.99999999,196.68,196.33,50.0]
[1761309047159,1.99999999,196.68,196.32,50.0]
[1761309047460,19.46728412,196.75,196.24,15.32729516]
[1761309047461,3.83792865,196.72,196.24,15.32729516]
[1761309047666,43.21740897,196.68,196.25,6.27693656]
[1761309047966,43.21740897,196.68,196.23,1.99999999]
[1761309048173,43.21740897,196.68,196.39,50.0]
[1761309048358,43.21740897,196.68,196.24,14.93757688]
[1761309048557,43.21740897,196.68,196.35,50.0]
[1761309048759,5.94048487,196.67,195.96,25.01523968]
[1761309048958,22.88,196.32,196.06,50.0]
[1761309049173,1.99999999,196.48,196.06,50.0]
[1761309049375,22.88,196.23,195.96,15.3645021]
[1761309049578,5.94048487,196.47,196.13,50.0]
[1761309049579,43.26580472,196.46,196.13,50.0]
[1761309049779,0.06269801,196.22,196.11,50.0]
[1761309050089,29.96436151,196.12,195.89,50.0]
[1761309050271,0.06269801,196.11,195.86,15.14416586]
[1761309050590,22.88,196.08,195.8,50.0]
[1761309050777,22.88,195.91,195.66,50.0]
[1761309050981,22.88,195.91,195.44,237.80146571]
[1761309050982,1.99999999,195.87,195.48,50.0]
[1761309051162,0.06269801,195.86,195.55,50.0]
[1761309051481,0.06269801,195.86,195.84,50.0]
[1761309051781,12.7375554,196.27,195.9,50.0]
[1761309051966,7.08436151,196.03,195.83,50.0]
[1761309052161,12.7375554,196.27,195.94,50.0]
[1761309052463,12.7375554,196.27,196.01,50.0]
[1761309052662,12.7375554,196.27,196.03,50.0]
[1761309052879,12.7375554,196.27,195.44,0.2]
[1761309052880,6.4020732,196.05,195.76,50.0]
[1761309053077,1.99999999,196.19,195.8,50.0]
[1761309053283,1.99999999,196.16,195.73,1.99999999]
[1761309053472,1.99999999,196.11,195.79,50.0]
[1761309053786,1.99999999,196.39,195.96,50.0]
[1761309053991,6.4020732,196.24,195.91,50.0]
[1761309054198,6.4020732,196.24,195.36,25.6082928]
[1761309054199,6.4020732,196.02,195.36,25.6082928]
[1761309054367,17.82077392,196.4,195.73,1.99999999]
[1761309054708,1.99999999,196.31,195.8,6.4020732]
[1761309054864,6.4020732,196.24,195.8,6.4020732]
[1761309055062,6.4020732,196.07,195.9,6.4020732]
[1761309055301,6.4020732,196.13,195.8,6.4020732]
[1761309055477,43.33639236,196.14,195.86,6.4020732]
[1761309055689,6.4020732,196.03,195.86,6.4020732]
[1761309055893,43.33639236,196.14,195.84,50.0]
[1761309056071,6.4020732,195.87,195.57,50.0]
[1761309056274,6.4020732,195.72,195.49,50.0]
[1761309056582,4.06903976,195.95,195.7,6.4020732]
[1761309056800,6.06903975,196.1,195.57,0.5]
[1761309057099,1.99999999,195.93,195.57,0.5]
[1761309057312,1.99999999,195.95,195.61,6.4020732]
[1761309057475,43.40277777,195.84,195.44,0.2]
[1761309057808,1.99999999,195.82,195.44,0.2]
[1761309058019,6.4020732,195.53,195.44,0.2]
[1761309058316,1.99999999,195.74,195.44,0.2]
[1761309058603,22.88,195.77,195.44,0.2]
[1761309058807,6.4020732,195.57,195.44,0.2]
[1761309058983,22.88,195.62,195.26,237.80146571]
[1761309058984,6.4020732,195.53,195.26,237.80146571]
[1761309059185,21.51564642,195.8,195.26,237.80146571]
[1761309059186,1.99999999,195.6,195.26,237.80146571]
[1761309059393,1.99999999,195.64,195.36,6.4020732]
[1761309059595,17.89091652,195.63,195.26,237.80146571]
[1761309059797,5.11116499,195.66,195.46,50.0]
[1761309060005,5.11116499,195.66,195.26,237.80146571]
[1761309060006,24.48,196.25,195.58,6.4020732]
[1761309060181,24.48,196.25,195.36,25.6082928]
[1761309060182,6.4020732,196.02,195.66,6.4020732]
[1761309060376,1.99999999,195.99,195.61,22.88]
[1761309060609,4.52554415,196.1,195.64,50.0]
[1761309060811,21.86202642,196.23,195.68,22.88]
[1761309060812,6.4020732,195.95,195.68,22.88]
[1761309061096,1.99999999,196.19,195.72,50.0]
[1761309061312,6.4020732,196.0,195.69,50.0]
[1761309061601,25.95532644,196.2,195.41,49.74]
[1761309061602,17.87355734,195.82,195.41,49.74]
[1761309061804,17.87355734,195.82,195.42,50.0]
[1761309061805,22.88,195.79,195.42,50.0]
[1761309062097,17.87355734,195.82,195.51,25.81533011]
[1761309062304,17.87355734,195.82,195.4,0.5]
[1761309062480,22.88,195.79,195.44,50.0]
[1761309062678,6.4020732,195.67,195.4,75.81533011]
[1761309062880,22.88,195.79,195.41,6.4020732]
[1761309062881,6.4020732,195.58,195.41,6.4020732]
[1761309063206,22.88,195.56,195.38,6.4020732]
[1761309063409,22.88,195.56,195.22,11.65805299]
[1761309063410,6.4020732,195.51,195.22,11.65805299]
[1761309063703,17.90556094,195.47,195.29,6.4020732]
[1761309063893,6.4020732,195.41,195.22,11.65805299]
[1761309064088,6.4020732,195.33,195.22,11.65805299]
[1761309064277,25.89718012,195.56,195.22,11.65805299]
[1761309064278,6.4020732,195.4,195.22,11.65805299]
[1761309064481,1.99999999,195.62,195.22,11.65805299]
[1761309064482,22.88,195.55,195.22,11.65805299]
[1761309064881,6.4020732,195.52,195.36,6.4020732]
[1761309065099,22.88,195.58,195.28,22.88]
[1761309065305,17.88908765,195.65,195.51,29.2820732]
[1761309065496,50.0,195.94,195.29,25.27068493]
[1761309065497,5.10256148,195.98,195.58,22.88]
[1761309065703,17.85896519,195.98,195.58,22.88]
[1761309065903,6.4020732,195.9,195.75,10.87647521]
[1761309066210,15.02317874,195.9,195.59,10.87647521]
[1761309066382,1.99999999,195.92,195.59,10.87647521]
[1761309066715,19.85896518,195.98,195.56,25.81533011]
[1761309066884,6.4020732,195.72,195.6,22.88]
[1761309067082,22.69854768,195.98,195.6,22.88]
[1761309067083,15.28724951,195.93,195.63,10.87647521]
[1761309067283,43.37177261,195.98,195.66,50.0]
[1761309067594,17.84348711,196.15,195.85,10.87647521]
[1761309067792,6.4020732,196.0,195.72,25.81533011]
[1761309068105,21.60122562,196.02,195.73,10.87647521]
[1761309068295,22.88,195.99,195.73,10.87647521]
[1761309068479,22.88,195.99,195.36,6.4020732]
[1761309068480,6.4020732,195.8,195.48,50.0]
[1761309068680,22.88,195.77,195.49,25.81533011]
[1761309069192,6.4020732,195.5,195.31,50.0]
[1761309069391,6.4020732,195.58,195.26,37.26819086]
[1761309069595,6.4020732,195.37,195.19,50.0]
[1761309069794,17.89640536,195.57,195.2,65.27985419]
[1761309070003,24.5,195.63,195.29,25.81533011]
[1761309070521,24.5,195.63,195.2,15.27985419]
[1761309070522,6.4020732,195.58,195.31,6.4020732]
[1761309070706,39.72943218,195.63,195.23,50.0]
[1761309070920,24.5,195.63,195.47,22.88]
[1761309071118,43.41386177,195.79,195.48,10.87647521]
[1761309071327,6.4020732,195.54,195.47,10.87647521]
[1761309071619,6.4020732,195.48,195.28,75.81533011]
[1761309071918,10.87647521,195.7,195.28,25.81533011]
[1761309072120,22.88,195.74,195.3,50.0]
[1761309072332,22.88,195.55,195.36,6.4020732]
[1761309072508,6.4020732,195.4,195.28,25.81533011]
[1761309072708,6.4020732,195.58,195.22,11.65805299]
[1761309072911,6.4020732,195.39,195.22,11.65805299]
[1761309073102,6.4020732,195.37,195.24,0.2]
[1761309073315,6.4020732,195.36,195.24,0.2]
[1761309073514,43.4560327,195.6,195.35,6.4020732]
[1761309073717,6.4020732,195.58,195.27,10.87647521]
[1761309073902,15.35448059,195.58,195.4,10.87647521]
[1761309074101,43.4560327,195.6,195.38,6.4020732]
[1761309074304,17.89366052,195.6,195.39,10.87647521]
[1761309074517,17.89366052,195.6,195.24,5.32164281]
[1761309074518,6.4020732,195.5,195.38,10.87647521]
[1761309074807,58.69546794,195.6,195.35,22.88]
[1761309075009,58.69546794,195.6,195.4,10.87647521]
[1761309075317,58.69546794,195.6,195.34,10.87647521]
[1761309075318,6.4020732,195.44,195.34,33.75647521]
[1761309075628,58.69546794,195.6,195.38,10.87647521]
[1761309075827,17.89366052,195.6,195.47,10.87647521]
[1761309076020,5.11142915,195.64,195.47,33.75647521]
[1761309076209,5.11095653,195.66,195.49,10.87647521]
[1761309076604,5.11095653,195.66,195.49,6.4020732]
[1761309077005,5.11095653,195.66,195.58,10.87647521]
[1761309077221,15.18483461,195.77,195.58,10.87647521]
[1761309077420,27.12011446,195.97,195.4,50.0]
[1761309077421,6.4020732,195.8,195.4,50.0]
[1761309077630,6.4020732,195.51,195.3,50.0]
[1761309077925,6.4020732,195.47,195.2,5.12290875]
[1761309078109,6.4020732,195.58,195.28,15.57160043]
[1761309078309,22.88,195.55,195.28,15.57160043]
[1761309078524,45.41386176,195.79,195.36,6.4020732]
[1761309078733,0.51583617,195.78,195.48,22.88]
[1761309078906,0.51583617,195.78,195.62,6.4020732]
[1761309079106,0.51583617,195.78,195.5,10.87647521]
[1761309079107,0.51583617,195.78,195.63,10.87647521]
[1761309079437,22.88,195.61,195.38,0.51182311]
[1761309079653,22.88,195.56,195.38,0.51182311]
[1761309079935,17.89457538,195.59,195.39,0.51179691]
[1761309080230,0.51583617,195.58,195.44,6.4020732]
[1761309080434,22.88,195.56,195.39,0.51179691]
[1761309080634,17.89457538,195.59,195.39,0.51179691]
[1761309080928,6.4020732,195.46,195.34,0.51192792]
[1761309081141,22.88,195.56,195.4,0.5]
[1761309081308,17.89457538,195.59,195.26,0.51213766]
[1761309081309,6.4020732,195.44,195.26,0.51213766]
[1761309081510,0.51583617,195.43,195.26,0.51213766]
[1761309081912,22.88,195.4,195.24,0.2]
[1761309082225,0.51583617,195.39,195.25,0.51216389]
[1761309082432,6.4020732,195.38,195.25,0.51216389]
[1761309082737,6.4020732,195.33,195.25,0.51216389]
[1761309082925,6.4020732,195.33,195.24,0.2]
[1761309082926,6.4020732,195.27,195.24,0.2]
[1761309083132,25.69834703,195.48,195.22,11.65805299]
[1761309083133,22.88,195.23,195.22,1e-08]
[1761309083339,23.2421882,195.23,195.11,15.15011154]
[1761309083630,23.2421882,195.23,194.9,15.22183793]
[1761309083631,43.54285127,195.21,194.9,15.22183793]
[1761309083821,0.36214891,195.2,194.92,6.4020732]
[1761309084024,0.36214891,195.2,194.93,0.51300466]
[1761309084631,30.9420732,195.36,194.97,51.99999999]
[1761309084632,5.1222174,195.23,194.97,51.99999999]
[1761309084914,5.12058989,195.29,195.07,22.88]
[1761309085223,0.36214891,195.28,195.15,10.87647521]
[1761309085416,0.36214891,195.28,195.17,10.87647521]
[1761309085736,0.36214891,195.5,195.25,10.87647521]
[1761309085963,0.36214891,195.5,195.25,0.51216389]
[1761309086126,0.36214891,195.5,195.17,0.51237382]
[1761309086324,0.36214891,195.5,195.07,10.87647521]
[1761309086325,6.4020732,195.23,195.07,10.87647521]
[1761309086520,22.88,195.3,195.08,0.51261021]
[1761309086851,0.36214891,195.4,195.26,10.87647521]
[1761309087025,22.88,195.46,195.26,10.87647521]
[1761309087026,0.36214891,195.45,195.32,6.4020732]
[1761309087224,0.36214891,195.45,195.28,10.87647521]
[1761309087447,6.4020732,195.4,195.29,0.51205898]
[1761309087628,5.47750007,195.49,195.37,10.87647521]
[1761309087824,18.26587799,195.49,195.3,0.51203277]
[1761309088030,0.36214891,195.49,195.37,6.4020732]
[1761309088221,0.36214891,195.49,195.34,6.4020732]
[1761309088427,0.36214891,195.49,195.29,10.87647521]
[1761309088649,0.36214891,195.49,195.22,0.51224259]
[1761309088844,0.36214891,195.49,195.23,0.40594376]
[1761309089055,22.88,195.4,195.17,22.88]
[1761309089253,22.88,195.4,195.33,6.4020732]
[1761309089560,6.4020732,195.4,195.18,50.51234757]
[1761309089729,0.36214891,195.44,195.23,22.88]
[1761309089930,0.36214891,195.44,195.29,6.4020732]
[1761309090126,0.36214891,195.44,195.27,0.51211143]
[1761309090357,0.36214891,195.44,195.17,0.51237382]
[1761309090542,0.36214891,195.44,195.12,0.51250512]
[1761309090543,22.88,195.33,195.12,0.51250512]
[1761309090745,6.4020732,195.27,195.19,6.4020732]
[1761309090928,43.48938345,195.45,195.24,6.4020732]
[1761309090929,6.4020732,195.31,195.24,6.4020732]
[1761309091133,6.4020732,195.39,195.3,6.4020732]
[1761309091335,6.4020732,195.38,195.31,6.91407975]
[1761309091531,17.90922579,195.43,195.31,0.51200655]
[1761309091733,5.11508951,195.5,195.35,6.4020732]
[1761309091945,0.36214891,195.49,195.32,0.51198033]
[1761309092465,6.4020732,195.58,195.32,23.39198033]
[1761309092761,0.36214891,195.57,195.4,6.4020732]
[1761309093063,0.36214891,195.61,195.49,6.4020732]
[1761309093228,25.55566805,195.66,195.5,0.51150895]
[1761309093229,5.11143481,195.64,195.5,0.51150895]
[1761309093536,5.11299723,195.58,195.5,6.91358215]
[1761309093737,12.77819849,195.65,195.5,0.51150895]
[1761309093943,30.99940381,195.84,195.62,6.4020732]
[1761309094142,30.99940381,195.84,195.41,50.0]
[1761309094143,6.4020732,195.74,195.65,6.4020732]
[1761309094337,43.76492668,195.84,195.63,0.51116904]
[1761309094741,6.4020732,195.75,195.68,6.4020732]
[1761309095089,32.66519555,196.37,195.85,50.0]
[1761309095368,15.40710008,196.45,195.8,6.4020732]
[1761309095369,15.0841918,196.45,196.12,6.4020732]
[1761309095540,15.0841918,196.45,196.08,1.99999999]
[1761309095541,12.73881668,196.26,196.09,0.50996991]
[1761309095745,15.0841918,196.45,196.03,2.51012599]
[1761309095746,6.4020732,196.23,196.03,2.51012599]
[1761309096057,49.63922966,196.38,196.06,1.99999999]
[1761309096058,5.09732446,196.19,196.06,1.99999999]
[1761309096235,12.73247235,196.35,196.12,6.4020732]
[1761309096434,6.4020732,196.32,196.12,8.40207319]
[1761309096631,5.09538243,196.26,196.12,8.40207319]
[1761309096958,17.82440415,196.36,196.03,0.510126]
[1761309097262,22.88,196.21,195.99,6.4020732]
[1761309097446,6.4020732,196.0,195.84,0.51062091]
[1761309097767,6.4020732,195.85,195.68,1.99999999]
[1761309098059,6.4020732,195.86,195.72,1.99999999]
[1761309098240,6.4020732,195.88,195.74,1.99999999]